[Event "Titled Tuesday Blitz July 20 2021"]
[White "Moroni, Luca Jr"]
[Black "Khusnutdinov, Rustam"]
[WhiteFideId "865834"]
[BlackFideId "13701703"]
[WhiteElo "2491"]
[BlackElo "2571"]
[Result "1-0"]
[Round "10"]
[TimeControl "180+1"]
[Date "2021.07.20"]
[WhiteClock "0:00:12"]
[BlackClock "0:00:29"]

1. d4 {[%clk 0:03:00]}  d5 {[%clk 0:02:58]} 2. c4 {[%clk 0:03:00]}  e6 {[%clk 0:02:57]} 3. Nc3 {[%clk 0:03:00]}  a6 {[%clk 0:02:57]} 4. cxd5 {[%clk 0:02:56]}  exd5 {[%clk 0:02:58]} 5. Nf3 {[%clk 0:02:56]}  h6 {[%clk 0:02:58]} 6. Bf4 {[%clk 0:02:55]}  Nf6 {[%clk 0:02:57]} 7. e3 {[%clk 0:02:55]}  Bd6 {[%clk 0:02:58]} 8. Bxd6 {[%clk 0:02:48]}  Qxd6 {[%clk 0:02:59]} 9. Bd3 {[%clk 0:02:48]}  Bg4 {[%clk 0:02:59]} 10. h3 {[%clk 0:02:31]}  Bxf3 {[%clk 0:02:59]} 11. Qxf3 {[%clk 0:02:32]}  Nbd7 {[%clk 0:02:59]} 12. O-O {[%clk 0:02:31]}  O-O {[%clk 0:02:59]} 13. Ne2 {[%clk 0:02:30]}  Rfe8 {[%clk 0:02:58]} 14. Ng3 {[%clk 0:02:29]}  g6 {[%clk 0:02:52]} 15. Rab1 {[%clk 0:02:23]}  c6 {[%clk 0:02:51]} 16. Ne2 {[%clk 0:02:12]}  Kg7 {[%clk 0:02:49]} 17. Nc3 {[%clk 0:02:07]}  a5 {[%clk 0:02:30]} 18. a3 {[%clk 0:02:06]}  Re7 {[%clk 0:02:24]} 19. Qd1 {[%clk 0:01:50]}  b5 {[%clk 0:02:16]} 20. a4 {[%clk 0:01:47]}  b4 {[%clk 0:02:12]} 21. Ne2 {[%clk 0:01:47]}  Ne4 {[%clk 0:02:09]} 22. Qc2 {[%clk 0:01:39]}  c5 {[%clk 0:02:00]} 23. Bxe4 {[%clk 0:01:37]}  Rxe4 {[%clk 0:01:55]} 24. dxc5 {[%clk 0:01:37]}  Qxc5 {[%clk 0:01:55]} 25. Qd2 {[%clk 0:01:30]}  Nf6 {[%clk 0:01:41]} 26. Rbc1 {[%clk 0:01:29]}  Qe7 {[%clk 0:01:40]} 27. Rfd1 {[%clk 0:01:28]}  Qe8 {[%clk 0:01:36]} 28. b3 {[%clk 0:01:27]}  Kh7 {[%clk 0:01:34]} 29. Rc7 {[%clk 0:01:16]}  Re7 {[%clk 0:01:30]} 30. Rdc1 {[%clk 0:01:12]}  Rd8 {[%clk 0:01:26]} 31. Qd4 {[%clk 0:01:06]}  Ne4 {[%clk 0:01:26]} 32. Qa7 {[%clk 0:00:58]}  Rdd7 {[%clk 0:01:15]} 33. Rxd7 {[%clk 0:00:55]}  Qxd7 {[%clk 0:01:16]} 34. Qxd7 {[%clk 0:00:46]}  Rxd7 {[%clk 0:01:17]} 35. Rc6 {[%clk 0:00:45]}  Rd6 {[%clk 0:01:06]} 36. Rc7 {[%clk 0:00:44]}  Kg7 {[%clk 0:01:06]} 37. f3 {[%clk 0:00:43]}  Nd2 {[%clk 0:00:58]} 38. Nd4 {[%clk 0:00:42]}  Kf6 {[%clk 0:00:46]} 39. Kf2 {[%clk 0:00:42]}  h5 {[%clk 0:00:47]} 40. Rc1 {[%clk 0:00:36]}  Kg5 {[%clk 0:00:41]} 41. Ke2 {[%clk 0:00:29]}  Kh4 {[%clk 0:00:41]} 42. Kxd2 {[%clk 0:00:24]}  Kg3 {[%clk 0:00:42]} 43. Rc6 {[%clk 0:00:16]}  Rd7 {[%clk 0:00:41]} 44. Ra6 {[%clk 0:00:11]}  Kxg2 {[%clk 0:00:34]} 45. h4 {[%clk 0:00:11]}  Kg3 {[%clk 0:00:34]} 46. Rxa5 {[%clk 0:00:11]}  Kxh4 {[%clk 0:00:35]} 47. Rb5 {[%clk 0:00:11]}  Kg3 {[%clk 0:00:35]} 48. Rxb4 {[%clk 0:00:12]}  g5 {[%clk 0:00:30]} 49. a5 {[%clk 0:00:11]}  h4 {[%clk 0:00:30]} 50. Nf5+ {[%clk 0:00:11]}  Kxf3 {[%clk 0:00:30]} 51. Nxh4+ {[%clk 0:00:11]}  gxh4 {[%clk 0:00:29]} 52. Rxh4 {[%clk 0:00:12]} 1-0


[Site "https://www.chess.com"]

[Event "Titled Tuesday Blitz July 20 2021"]
[White "Najdin, Danil"]
[Black "kai_nov"]
[WhiteFideId "4172426"]
[WhiteElo "2193"]
[BlackElo "2321"]
[Result "0-1"]
[Round "10"]
[TimeControl "180+1"]
[Date "2021.07.21"]
[WhiteClock "0:00:13"]
[BlackClock "0:00:16"]

1. e4 {[%clk 0:03:00]}  c5 {[%clk 0:02:26]} 2. Nc3 {[%clk 0:02:27]}  e6 {[%clk 0:02:25]} 3. g3 {[%clk 0:02:27]}  d5 {[%clk 0:02:22]} 4. Bg2 {[%clk 0:02:23]}  d4 {[%clk 0:02:17]} 5. Nce2 {[%clk 0:02:23]}  d3 {[%clk 0:02:15]} 6. cxd3 {[%clk 0:02:22]}  Nc6 {[%clk 0:02:12]} 7. d4 {[%clk 0:02:09]}  cxd4 {[%clk 0:02:09]} 8. d3 {[%clk 0:02:09]}  Nf6 {[%clk 0:02:06]} 9. a3 {[%clk 0:01:59]}  e5 {[%clk 0:01:57]} 10. Bh3 {[%clk 0:01:55]}  Bd6 {[%clk 0:01:44]} 11. Bg5 {[%clk 0:01:50]}  h6 {[%clk 0:01:35]} 12. Bd2 {[%clk 0:01:41]}  Bxh3 {[%clk 0:01:28]} 13. Nxh3 {[%clk 0:01:41]}  Qd7 {[%clk 0:01:29]} 14. Nhg1 {[%clk 0:01:36]}  g5 {[%clk 0:01:07]} 15. h3 {[%clk 0:01:31]}  Qe6 {[%clk 0:00:51]} 16. Kf1 {[%clk 0:01:26]}  O-O-O {[%clk 0:00:47]} 17. Kg2 {[%clk 0:01:20]}  Kb8 {[%clk 0:00:47]} 18. Nf3 {[%clk 0:01:13]}  Rc8 {[%clk 0:00:40]} 19. b4 {[%clk 0:01:11]}  Ne7 {[%clk 0:00:32]} 20. Rc1 {[%clk 0:01:02]}  Rxc1 {[%clk 0:00:24]} 21. Nxc1 {[%clk 0:01:02]}  Rc8 {[%clk 0:00:25]} 22. Nb3 {[%clk 0:00:52]}  Nd7 {[%clk 0:00:24]} 23. Qb1 {[%clk 0:00:44]}  f5 {[%clk 0:00:24]} 24. exf5 {[%clk 0:00:38]}  Nxf5 {[%clk 0:00:23]} 25. Re1 {[%clk 0:00:34]}  Qd5 {[%clk 0:00:22]} 26. Na5 {[%clk 0:00:27]}  Rf8 {[%clk 0:00:21]} 27. Qb3 {[%clk 0:00:25]}  Nh4+ {[%clk 0:00:21]} 28. gxh4 {[%clk 0:00:20]}  Qxf3+ {[%clk 0:00:21]} 29. Kg1 {[%clk 0:00:16]}  Qxf2+ {[%clk 0:00:21]} 30. Kh1 {[%clk 0:00:16]}  Rf3 {[%clk 0:00:17]} 31. Qg8+ {[%clk 0:00:13]}  Nf8 {[%clk 0:00:16]} 0-1


[Site "https://www.chess.com"]

[Event "Titled Tuesday Blitz July 20 2021"]
[White "Nazaretyan, Tigran"]
[Black "Samsonkin, Artiom"]
[WhiteFideId "24162345"]
[BlackFideId "13503111"]
[WhiteElo "2214"]
[BlackElo "2513"]
[Result "0-1"]
[Round "10"]
[TimeControl "180+1"]
[Date "2021.07.20"]
[WhiteClock "0:00:09"]
[BlackClock "0:00:18"]

1. d4 {[%clk 0:02:58]}  Nf6 {[%clk 0:02:59]} 2. c4 {[%clk 0:02:56]}  e6 {[%clk 0:03:00]} 3. Nf3 {[%clk 0:02:56]}  Bb4+ {[%clk 0:03:00]} 4. Bd2 {[%clk 0:02:56]}  Qe7 {[%clk 0:03:00]} 5. g3 {[%clk 0:02:54]}  Nc6 {[%clk 0:03:00]} 6. e3 {[%clk 0:02:54]}  Bxd2+ {[%clk 0:02:51]} 7. Qxd2 {[%clk 0:02:45]}  e5 {[%clk 0:02:52]} 8. d5 {[%clk 0:02:44]}  Nb8 {[%clk 0:02:52]} 9. Nc3 {[%clk 0:02:43]}  d6 {[%clk 0:02:53]} 10. e4 {[%clk 0:02:42]}  a5 {[%clk 0:02:51]} 11. a3 {[%clk 0:02:39]}  O-O {[%clk 0:02:45]} 12. Bg2 {[%clk 0:02:27]}  Na6 {[%clk 0:02:39]} 13. b4 {[%clk 0:02:26]}  Bg4 {[%clk 0:02:32]} 14. Rb1 {[%clk 0:02:24]}  axb4 {[%clk 0:02:32]} 15. axb4 {[%clk 0:02:24]}  c6 {[%clk 0:02:29]} 16. O-O {[%clk 0:02:19]}  c5 {[%clk 0:02:29]} 17. b5 {[%clk 0:02:12]}  Bxf3 {[%clk 0:02:22]} 18. bxa6 {[%clk 0:02:05]}  Bxg2 {[%clk 0:02:14]} 19. Rxb7 {[%clk 0:02:05]}  Qd8 {[%clk 0:01:58]} 20. Kxg2 {[%clk 0:02:04]}  Rxa6 {[%clk 0:01:59]} 21. Rfb1 {[%clk 0:02:02]}  h5 {[%clk 0:01:50]} 22. h4 {[%clk 0:01:46]}  Qa8 {[%clk 0:01:44]} 23. R7b6 {[%clk 0:01:39]}  Ra3 {[%clk 0:01:12]} 24. R1b3 {[%clk 0:01:21]}  Rxb3 {[%clk 0:01:09]} 25. Rxb3 {[%clk 0:01:20]}  Qa6 {[%clk 0:01:09]} 26. Rb5 {[%clk 0:01:17]}  Ra8 {[%clk 0:01:05]} 27. Qb2 {[%clk 0:01:16]}  Kh7 {[%clk 0:01:03]} 28. f3 {[%clk 0:01:09]}  Rg8 {[%clk 0:00:55]} 29. Qb3 {[%clk 0:01:03]}  g5 {[%clk 0:00:50]} 30. hxg5 {[%clk 0:00:58]}  Rxg5 {[%clk 0:00:50]} 31. Qa4 {[%clk 0:00:59]}  Qc8 {[%clk 0:00:47]} 32. Qa7 {[%clk 0:00:58]}  Qg8 {[%clk 0:00:46]} 33. Ne2 {[%clk 0:00:53]}  h4 {[%clk 0:00:46]} 34. g4 {[%clk 0:00:36]}  Nxg4 {[%clk 0:00:30]} 35. fxg4 {[%clk 0:00:32]}  Rxg4+ {[%clk 0:00:31]} 36. Kf3 {[%clk 0:00:28]}  Rg2 {[%clk 0:00:26]} 37. Rb2 {[%clk 0:00:20]}  h3 {[%clk 0:00:18]} 38. Qd7 {[%clk 0:00:20]}  Rh2 {[%clk 0:00:14]} 39. Qg4 {[%clk 0:00:19]}  Qg6 {[%clk 0:00:05]} 40. Qxg6+ {[%clk 0:00:16]}  Kxg6 {[%clk 0:00:06]} 41. Kg3 {[%clk 0:00:16]}  Rh1 {[%clk 0:00:07]} 42. Nc3 {[%clk 0:00:15]}  f5 {[%clk 0:00:07]} 43. exf5+ {[%clk 0:00:14]}  Kxf5 {[%clk 0:00:08]} 44. Nb5 {[%clk 0:00:15]}  Rc1 {[%clk 0:00:03]} 45. Nxd6+ {[%clk 0:00:14]}  Kf6 {[%clk 0:00:03]} 46. Rf2+ {[%clk 0:00:15]}  Ke7 {[%clk 0:00:03]} 47. Nf5+ {[%clk 0:00:14]}  Kd7 {[%clk 0:00:03]} 48. Ne3 {[%clk 0:00:14]}  Rc3 {[%clk 0:00:03]} 49. Rf7+ {[%clk 0:00:13]}  Ke8 {[%clk 0:00:03]} 50. Rf3 {[%clk 0:00:13]}  e4 {[%clk 0:00:04]} 51. Rf4 {[%clk 0:00:08]}  Rxe3+ {[%clk 0:00:05]} 52. Kh2 {[%clk 0:00:08]}  Ke7 {[%clk 0:00:05]} 53. Rf5 {[%clk 0:00:08]}  Kd6 {[%clk 0:00:06]} 54. Rh5 {[%clk 0:00:08]}  Rc3 {[%clk 0:00:05]} 55. Rh6+ {[%clk 0:00:08]}  Ke5 {[%clk 0:00:05]} 56. Re6+ {[%clk 0:00:08]}  Kf4 {[%clk 0:00:06]} 57. d6 {[%clk 0:00:09]}  Rxc4 {[%clk 0:00:06]} 58. d7 {[%clk 0:00:09]}  Rd4 {[%clk 0:00:07]} 59. Rf6+ {[%clk 0:00:09]}  Ke3 {[%clk 0:00:08]} 60. Rf7 {[%clk 0:00:09]}  c4 {[%clk 0:00:08]} 61. Kxh3 {[%clk 0:00:09]}  c3 {[%clk 0:00:09]} 62. Kg4 {[%clk 0:00:02]}  c2 {[%clk 0:00:09]} 63. d8=Q {[%clk 0:00:03]}  Rxd8 {[%clk 0:00:09]} 64. Rc7 {[%clk 0:00:03]}  Kd2 {[%clk 0:00:09]} 65. Kf5 {[%clk 0:00:03]}  c1=Q {[%clk 0:00:09]} 66. Rxc1 {[%clk 0:00:02]}  Kxc1 {[%clk 0:00:10]} 67. Kxe4 {[%clk 0:00:03]}  Rd2 {[%clk 0:00:10]} 68. Ke3 {[%clk 0:00:04]}  Kd1 {[%clk 0:00:11]} 69. Ke4 {[%clk 0:00:04]}  Ke1 {[%clk 0:00:12]} 70. Ke3 {[%clk 0:00:05]}  Re2+ {[%clk 0:00:12]} 71. Kf3 {[%clk 0:00:05]}  Kd2 {[%clk 0:00:12]} 72. Kf4 {[%clk 0:00:05]}  Kd3 {[%clk 0:00:13]} 73. Kf3 {[%clk 0:00:06]}  Re4 {[%clk 0:00:13]} 74. Kf2 {[%clk 0:00:06]}  Re3 {[%clk 0:00:14]} 75. Kg2 {[%clk 0:00:06]}  Ke4 {[%clk 0:00:15]} 76. Kf2 {[%clk 0:00:07]}  Kf4 {[%clk 0:00:16]} 77. Kg2 {[%clk 0:00:07]}  Re2+ {[%clk 0:00:16]} 78. Kg1 {[%clk 0:00:07]}  Kf3 {[%clk 0:00:17]} 79. Kf1 {[%clk 0:00:08]}  Re3 {[%clk 0:00:17]} 80. Kg1 {[%clk 0:00:08]}  Kg3 {[%clk 0:00:17]} 81. Kf1 {[%clk 0:00:08]}  Re4 {[%clk 0:00:17]} 82. Kg1 {[%clk 0:00:09]}  Re1# {[%clk 0:00:18]} 0-1


[Site "https://www.chess.com"]

[Event "Titled Tuesday Blitz July 20 2021"]
[White "Nguyen, Hong Ngoc"]
[Black "Gubajdullin, Alexei"]
[WhiteFideId "12403083"]
[BlackFideId "4141202"]
[WhiteElo "1830"]
[BlackElo "2403"]
[Result "1-0"]
[Round "10"]
[TimeControl "180+1"]
[Date "2021.07.21"]
[WhiteClock "0:00:06"]
[BlackClock "0:00:50"]

1. e4 {[%clk 0:03:00]}  g6 {[%clk 0:02:57]} 2. d4 {[%clk 0:03:00]}  Bg7 {[%clk 0:02:58]} 3. Nf3 {[%clk 0:03:00]}  d6 {[%clk 0:02:58]} 4. c3 {[%clk 0:02:59]}  Nf6 {[%clk 0:02:56]} 5. Bd3 {[%clk 0:03:00]}  O-O {[%clk 0:02:57]} 6. Nbd2 {[%clk 0:02:59]}  Nc6 {[%clk 0:02:57]} 7. O-O {[%clk 0:02:59]}  e5 {[%clk 0:02:58]} 8. Re1 {[%clk 0:03:00]}  Re8 {[%clk 0:02:56]} 9. Nf1 {[%clk 0:02:56]}  exd4 {[%clk 0:02:50]} 10. cxd4 {[%clk 0:02:56]}  Bg4 {[%clk 0:02:51]} 11. d5 {[%clk 0:02:06]}  Nd4 {[%clk 0:02:49]} 12. N1d2 {[%clk 0:01:52]}  Bxf3 {[%clk 0:02:34]} 13. Nxf3 {[%clk 0:01:51]}  Nxf3+ {[%clk 0:02:34]} 14. Qxf3 {[%clk 0:01:30]}  Nxd5 {[%clk 0:02:34]} 15. Bc4 {[%clk 0:01:29]}  Nf6 {[%clk 0:02:33]} 16. Bg5 {[%clk 0:01:28]}  Re5 {[%clk 0:02:33]} 17. Bf4 {[%clk 0:01:28]}  Rc5 {[%clk 0:02:32]} 18. Bb3 {[%clk 0:01:28]}  Qe7 {[%clk 0:02:31]} 19. Rad1 {[%clk 0:01:23]}  Nd7 {[%clk 0:02:29]} 20. e5 {[%clk 0:01:19]}  Nxe5 {[%clk 0:02:13]} 21. Qxb7 {[%clk 0:01:18]}  Rf8 {[%clk 0:02:11]} 22. Be3 {[%clk 0:01:09]}  Ra5 {[%clk 0:02:02]} 23. Bd2 {[%clk 0:00:58]}  Rc5 {[%clk 0:02:01]} 24. Bb4 {[%clk 0:00:50]}  Rc6 {[%clk 0:01:39]} 25. Rxe5 {[%clk 0:00:49]}  Bxe5 {[%clk 0:01:38]} 26. Qxc6 {[%clk 0:00:43]}  Qh4 {[%clk 0:01:39]} 27. Bd2 {[%clk 0:00:38]}  Qxh2+ {[%clk 0:01:36]} 28. Kf1 {[%clk 0:00:38]}  Bxb2 {[%clk 0:01:35]} 29. Be3 {[%clk 0:00:37]}  a5 {[%clk 0:01:28]} 30. Ke2 {[%clk 0:00:36]}  Qh5+ {[%clk 0:01:19]} 31. Kf1 {[%clk 0:00:25]}  Qh1+ {[%clk 0:01:17]} 32. Ke2 {[%clk 0:00:25]}  Qh5+ {[%clk 0:01:17]} 33. f3 {[%clk 0:00:22]}  Qh2 {[%clk 0:01:15]} 34. Kf2 {[%clk 0:00:22]}  Be5 {[%clk 0:01:14]} 35. Kf1 {[%clk 0:00:20]}  Qh1+ {[%clk 0:01:12]} 36. Ke2 {[%clk 0:00:18]}  Qh2 {[%clk 0:01:11]} 37. Rg1 {[%clk 0:00:13]}  Bf4 {[%clk 0:01:10]} 38. Bxf4 {[%clk 0:00:12]}  Qxg1 {[%clk 0:01:08]} 39. Bh6 {[%clk 0:00:09]}  Qxg2+ {[%clk 0:01:08]} 40. Kd3 {[%clk 0:00:10]}  Rb8 {[%clk 0:01:00]} 41. Bxf7+ {[%clk 0:00:07]}  Kxf7 {[%clk 0:00:57]} 42. Qd7+ {[%clk 0:00:06]}  Kf6 {[%clk 0:00:57]} 43. Qg7+ {[%clk 0:00:05]}  Kf5 {[%clk 0:00:57]} 44. Qf7+ {[%clk 0:00:06]}  Ke5 {[%clk 0:00:50]} 45. Bg7# {[%clk 0:00:06]} 1-0


[Site "https://www.chess.com"]

[Event "Titled Tuesday Blitz July 20 2021"]
[White "Orantes Taboada, Francisco"]
[Black "Perez Rodriguez, Luis Manuel"]
[WhiteFideId "22274758"]
[BlackFideId "3503364"]
[WhiteElo "2073"]
[BlackElo "2429"]
[Result "0-1"]
[Round "10"]
[TimeControl "180+1"]
[Date "2021.07.21"]
[WhiteClock "0:00:14"]
[BlackClock "0:00:45"]

1. Nf3 {[%clk 0:02:59]}  d5 {[%clk 0:02:58]} 2. d4 {[%clk 0:02:56]}  Nf6 {[%clk 0:02:58]} 3. g3 {[%clk 0:02:57]}  g6 {[%clk 0:02:57]} 4. Bg2 {[%clk 0:02:57]}  Bg7 {[%clk 0:02:58]} 5. c4 {[%clk 0:02:58]}  c6 {[%clk 0:02:57]} 6. Nc3 {[%clk 0:02:49]}  O-O {[%clk 0:02:56]} 7. Qb3 {[%clk 0:02:36]}  dxc4 {[%clk 0:02:54]} 8. Qxc4 {[%clk 0:02:37]}  b5 {[%clk 0:02:54]} 9. Qd3 {[%clk 0:02:36]}  b4 {[%clk 0:02:53]} 10. Nd1 {[%clk 0:02:35]}  Ba6 {[%clk 0:02:33]} 11. Qc2 {[%clk 0:02:33]}  Nbd7 {[%clk 0:02:28]} 12. O-O {[%clk 0:02:32]}  Rc8 {[%clk 0:02:28]} 13. Re1 {[%clk 0:02:29]}  c5 {[%clk 0:02:26]} 14. dxc5 {[%clk 0:02:27]}  Nxc5 {[%clk 0:02:25]} 15. Qd2 {[%clk 0:02:23]}  Qb6 {[%clk 0:02:19]} 16. Qf4 {[%clk 0:01:43]}  b3 {[%clk 0:02:12]} 17. a3 {[%clk 0:01:39]}  Rfd8 {[%clk 0:01:56]} 18. Nc3 {[%clk 0:01:38]}  Ne6 {[%clk 0:01:49]} 19. Qe3 {[%clk 0:01:34]}  Qa5 {[%clk 0:01:37]} 20. Bd2 {[%clk 0:01:17]}  Qh5 {[%clk 0:01:32]} 21. h4 {[%clk 0:01:15]}  Bb7 {[%clk 0:01:23]} 22. Qxa7 {[%clk 0:01:11]}  Rd7 {[%clk 0:01:15]} 23. Qb6 {[%clk 0:00:47]}  Ng4 {[%clk 0:01:10]} 24. Be3 {[%clk 0:00:33]}  Rc6 {[%clk 0:01:02]} 25. Qa7 {[%clk 0:00:28]}  Rxc3 {[%clk 0:00:57]} 26. bxc3 {[%clk 0:00:24]}  Bxf3 {[%clk 0:00:57]} 27. Bxf3 {[%clk 0:00:14]}  Rxa7 {[%clk 0:00:56]} 28. Bxa7 {[%clk 0:00:15]}  Bxc3 {[%clk 0:00:54]} 29. Rab1 {[%clk 0:00:15]}  Bxe1 {[%clk 0:00:53]} 30. Rxe1 {[%clk 0:00:16]}  Qf5 {[%clk 0:00:49]} 31. Rc1 {[%clk 0:00:15]}  b2 {[%clk 0:00:45]} 32. Rc8+ {[%clk 0:00:15]}  Kg7 {[%clk 0:00:45]} 33. Kg2 {[%clk 0:00:14]} 0-1


[Site "https://www.chess.com"]

[Event "Titled Tuesday Blitz July 20 2021"]
[White "Pichot, Alan"]
[Black "Kukhmazov, Arsen"]
[WhiteFideId "110973"]
[BlackFideId "24108260"]
[WhiteElo "2622"]
[BlackElo "2453"]
[Result "1-0"]
[Round "10"]
[TimeControl "180+1"]
[Date "2021.07.20"]
[WhiteClock "0:00:09"]
[BlackClock "0:00:01"]

1. e4 {[%clk 0:03:00]}  c6 {[%clk 0:03:00]} 2. Nf3 {[%clk 0:03:00]}  d5 {[%clk 0:03:01]} 3. d3 {[%clk 0:03:01]}  g6 {[%clk 0:03:00]} 4. e5 {[%clk 0:02:59]}  f6 {[%clk 0:03:00]} 5. d4 {[%clk 0:02:59]}  fxe5 {[%clk 0:03:00]} 6. Nxe5 {[%clk 0:02:59]}  Bg7 {[%clk 0:03:01]} 7. Bd3 {[%clk 0:02:59]}  Nd7 {[%clk 0:02:56]} 8. Nf3 {[%clk 0:02:58]}  Nh6 {[%clk 0:02:52]} 9. O-O {[%clk 0:02:54]}  O-O {[%clk 0:02:52]} 10. Re1 {[%clk 0:02:55]}  Nf7 {[%clk 0:02:52]} 11. Bf4 {[%clk 0:02:48]}  Qb6 {[%clk 0:02:18]} 12. Nbd2 {[%clk 0:02:46]}  e5 {[%clk 0:02:17]} 13. dxe5 {[%clk 0:02:44]}  Nc5 {[%clk 0:01:28]} 14. Be3 {[%clk 0:02:44]}  Qa5 {[%clk 0:01:28]} 15. Nb3 {[%clk 0:02:19]}  Nxb3 {[%clk 0:01:28]} 16. axb3 {[%clk 0:02:19]}  Qc7 {[%clk 0:01:27]} 17. Bf4 {[%clk 0:02:04]}  Bg4 {[%clk 0:01:25]} 18. Re3 {[%clk 0:01:19]}  Bxf3 {[%clk 0:01:12]} 19. Qxf3 {[%clk 0:01:19]}  Qe7 {[%clk 0:00:16]} 20. e6 {[%clk 0:01:09]}  Nd6 {[%clk 0:00:11]} 21. Qg3 {[%clk 0:01:05]}  Nf5 {[%clk 0:00:05]} 22. Bxf5 {[%clk 0:01:06]}  Rxf5 {[%clk 0:00:06]} 23. Bd6 {[%clk 0:01:06]}  Qf6 {[%clk 0:00:06]} 24. c3 {[%clk 0:00:55]}  Re8 {[%clk 0:00:06]} 25. Rae1 {[%clk 0:00:53]}  Rg5 {[%clk 0:00:05]} 26. Qf4 {[%clk 0:00:52]}  Rf5 {[%clk 0:00:05]} 27. Qg3 {[%clk 0:00:44]}  Rg5 {[%clk 0:00:05]} 28. Qf3 {[%clk 0:00:45]}  Rf5 {[%clk 0:00:06]} 29. Qe2 {[%clk 0:00:45]}  Bh6 {[%clk 0:00:03]} 30. Re5 {[%clk 0:00:43]}  Rxe5 {[%clk 0:00:02]} 31. Qxe5 {[%clk 0:00:44]}  Qxe5 {[%clk 0:00:01]} 32. Bxe5 {[%clk 0:00:37]}  Rxe6 {[%clk 0:00:02]} 33. Kf1 {[%clk 0:00:38]}  Kf7 {[%clk 0:00:02]} 34. Bd4 {[%clk 0:00:25]}  Rxe1+ {[%clk 0:00:03]} 35. Kxe1 {[%clk 0:00:26]}  a6 {[%clk 0:00:04]} 36. Kd1 {[%clk 0:00:24]}  Ke6 {[%clk 0:00:05]} 37. f3 {[%clk 0:00:24]}  Bf4 {[%clk 0:00:05]} 38. g3 {[%clk 0:00:24]}  Bd6 {[%clk 0:00:06]} 39. b4 {[%clk 0:00:24]}  Bc7 {[%clk 0:00:06]} 40. Ke2 {[%clk 0:00:24]}  h5 {[%clk 0:00:06]} 41. f4 {[%clk 0:00:23]}  Kf5 {[%clk 0:00:06]} 42. Kf3 {[%clk 0:00:24]}  Bd6 {[%clk 0:00:05]} 43. h3 {[%clk 0:00:24]}  Ke6 {[%clk 0:00:05]} 44. g4 {[%clk 0:00:25]}  hxg4+ {[%clk 0:00:06]} 45. Kxg4 {[%clk 0:00:23]}  Be7 {[%clk 0:00:07]} 46. h4 {[%clk 0:00:23]}  Bd8 {[%clk 0:00:06]} 47. Be5 {[%clk 0:00:19]}  Be7 {[%clk 0:00:06]} 48. Bd4 {[%clk 0:00:18]}  Bd8 {[%clk 0:00:07]} 49. Bc5 {[%clk 0:00:16]}  Bf6 {[%clk 0:00:07]} 50. Bb6 {[%clk 0:00:13]}  Be7 {[%clk 0:00:07]} 51. Bf2 {[%clk 0:00:12]}  Bf6 {[%clk 0:00:07]} 52. f5+ {[%clk 0:00:08]}  gxf5+ {[%clk 0:00:08]} 53. Kf4 {[%clk 0:00:09]}  Be5+ {[%clk 0:00:08]} 54. Kg5 {[%clk 0:00:10]}  Kf7 {[%clk 0:00:02]} 55. Kxf5 {[%clk 0:00:10]}  Bd6 {[%clk 0:00:02]} 56. h5 {[%clk 0:00:10]}  Kg7 {[%clk 0:00:02]} 57. Ke6 {[%clk 0:00:10]}  Bf4 {[%clk 0:00:02]} 58. Kd7 {[%clk 0:00:09]}  Bc1 {[%clk 0:00:03]} 59. b3 {[%clk 0:00:09]}  Kh6 {[%clk 0:00:03]} 60. Kc7 {[%clk 0:00:08]}  Bd2 {[%clk 0:00:02]} 61. Bd4 {[%clk 0:00:08]}  Kxh5 {[%clk 0:00:01]} 62. Kxb7 {[%clk 0:00:09]} 1-0


[Site "https://www.chess.com"]

[Event "Titled Tuesday Blitz July 20 2021"]
[White "Preotu, Razvan"]
[Black "Omk124"]
[WhiteFideId "2613280"]
[WhiteElo "2407"]
[BlackElo "2566"]
[Result "1-0"]
[Round "10"]
[TimeControl "180+1"]
[Date "2021.07.21"]
[WhiteClock "0:00:10"]
[BlackClock "0:00:07"]

1. e4 {[%clk 0:03:00]}  g6 {[%clk 0:03:00]} 2. d4 {[%clk 0:03:00]}  Bg7 {[%clk 0:03:00]} 3. Nc3 {[%clk 0:03:01]}  c6 {[%clk 0:03:01]} 4. Be3 {[%clk 0:03:00]}  d5 {[%clk 0:02:58]} 5. e5 {[%clk 0:03:00]}  Nh6 {[%clk 0:02:59]} 6. Qd2 {[%clk 0:02:59]}  Nf5 {[%clk 0:02:59]} 7. Bf4 {[%clk 0:02:59]}  f6 {[%clk 0:03:00]} 8. Nf3 {[%clk 0:02:57]}  O-O {[%clk 0:02:59]} 9. Be2 {[%clk 0:02:31]}  fxe5 {[%clk 0:02:27]} 10. Bxe5 {[%clk 0:02:28]}  Nd7 {[%clk 0:02:25]} 11. Bxg7 {[%clk 0:02:27]}  Kxg7 {[%clk 0:02:26]} 12. O-O-O {[%clk 0:02:11]}  b5 {[%clk 0:02:23]} 13. h4 {[%clk 0:01:53]}  Nf6 {[%clk 0:02:19]} 14. Bd3 {[%clk 0:01:32]}  h5 {[%clk 0:02:03]} 15. Rhe1 {[%clk 0:01:23]}  Ng4 {[%clk 0:01:57]} 16. Qg5 {[%clk 0:00:58]}  e6 {[%clk 0:01:54]} 17. Bxf5 {[%clk 0:00:51]}  Qxg5+ {[%clk 0:01:47]} 18. Nxg5 {[%clk 0:00:52]}  exf5 {[%clk 0:01:29]} 19. Re7+ {[%clk 0:00:45]}  Kg8 {[%clk 0:01:22]} 20. f3 {[%clk 0:00:42]}  Nf6 {[%clk 0:01:19]} 21. Rde1 {[%clk 0:00:40]}  Bd7 {[%clk 0:01:17]} 22. Ne2 {[%clk 0:00:34]}  Rae8 {[%clk 0:00:19]} 23. Nf4 {[%clk 0:00:34]}  Rxe7 {[%clk 0:00:19]} 24. Rxe7 {[%clk 0:00:35]}  Re8 {[%clk 0:00:20]} 25. Rf7 {[%clk 0:00:34]}  Rf8 {[%clk 0:00:16]} 26. Rxf8+ {[%clk 0:00:29]}  Kxf8 {[%clk 0:00:17]} 27. Nxg6+ {[%clk 0:00:29]}  Kg7 {[%clk 0:00:18]} 28. Ne5 {[%clk 0:00:23]}  Kf8 {[%clk 0:00:18]} 29. Kd2 {[%clk 0:00:22]}  Be8 {[%clk 0:00:19]} 30. Ke3 {[%clk 0:00:22]}  Ke7 {[%clk 0:00:20]} 31. Nh3 {[%clk 0:00:20]}  Ke6 {[%clk 0:00:19]} 32. Nf4+ {[%clk 0:00:21]}  Ke7 {[%clk 0:00:20]} 33. a3 {[%clk 0:00:14]}  Kd6 {[%clk 0:00:19]} 34. Nfd3 {[%clk 0:00:13]}  Ng8 {[%clk 0:00:17]} 35. Kf4 {[%clk 0:00:13]}  Ne7 {[%clk 0:00:17]} 36. Kg5 {[%clk 0:00:13]}  Ke6 {[%clk 0:00:16]} 37. Nf4+ {[%clk 0:00:13]}  Kd6 {[%clk 0:00:17]} 38. Nxh5 {[%clk 0:00:14]}  c5 {[%clk 0:00:17]} 39. c3 {[%clk 0:00:13]}  a5 {[%clk 0:00:17]} 40. b4 {[%clk 0:00:11]}  axb4 {[%clk 0:00:17]} 41. axb4 {[%clk 0:00:11]}  cxd4 {[%clk 0:00:16]} 42. cxd4 {[%clk 0:00:12]}  Nc8 {[%clk 0:00:10]} 43. Ng7 {[%clk 0:00:12]}  Ke7 {[%clk 0:00:09]} 44. h5 {[%clk 0:00:10]}  Nd6 {[%clk 0:00:09]} 45. h6 {[%clk 0:00:10]}  Nc4 {[%clk 0:00:07]} 46. h7 {[%clk 0:00:10]} 1-0


[Site "https://www.chess.com"]